fUST/lending_fUST_20240717
["ID","MTS","AMOUNT","RATE_DAILY","PERIOD"]
[332418393,1721169086910,-500.0,0.00024931,2]
[332418394,1721169086919,-500.0,0.00024931,2]
[332418395,1721169086929,-782.13,0.00024931,2]
[332418396,1721169086939,-500.0,0.00024931,2]
[332418397,1721169086949,-755.38,0.00024931,2]
[332418398,1721169086960,-23532.56,0.00024931,2]
[332418399,1721169086970,-1207.91,0.00024931,2]
[332418400,1721169086979,-500.0,0.00024931,2]
[332418401,1721169086990,-500.0,0.00024931,2]
[332418402,1721169086999,-10406.23,0.00024931,2]
[332418403,1721169087009,-659.05,0.00024931,2]
[332418404,1721169087023,-528.84,0.00024931,2]
[332418405,1721169087032,-500.0,0.00024931,2]
[332418406,1721169087042,-761.91,0.00024931,2]
[332418407,1721169087052,-684.98,0.00024931,2]
[332418408,1721169087064,-500.0,0.00024931,2]
[332418409,1721169087074,-500.0,0.00024931,2]
[332418410,1721169087084,-905.03,0.00024931,2]
[332418411,1721169087093,-500.0,0.00024931,2]
[332418412,1721169087102,-500.0,0.00024931,2]
[332418413,1721169087112,-500.0,0.00024931,2]
[332418414,1721169087121,-1609.25,0.00024931,2]
[332418415,1721169087130,-500.0,0.00024931,2]
[332418416,1721169087140,-500.0,0.00024931,2]
[332418417,1721169087149,-150.0,0.0002496,2]
[332418418,1721169087158,-150.0,0.0002496,2]
[332418419,1721169087167,-394.37458897,0.00024979,2]
[332418420,1721169087177,-394.37458897,0.00024992,2]
[332418421,1721169087186,-394.37458897,0.00024995,2]
[332418422,1721169087196,-155.0524099,0.00024999,2]
[332418423,1721169087205,-150.0,0.00024999,2]
[332418424,1721169087215,-6371.06566436,0.00025,2]
[332418425,1721169087226,-154.72922386,0.00025,2]
[332418426,1721169087238,-189.45900454,0.00025,2]
[332418427,1721169087247,-300.0,0.00025,2]
[332418428,1721169087380,-243.29214354,0.00025,2]
[332418429,1721169087389,-205.899999,0.00025,2]
[332418430,1721169087398,-4243.55714212,0.00025,60]
[332418431,1721169087407,-154.75898115,0.00025,2]
[332418432,1721169087416,-1026.86139561,0.00025,2]
[332418433,1721169087425,-190.94688451,0.00025,2]
[332418434,1721169087434,-346.0,0.00025,2]
[332418435,1721169087444,-1853.86719859,0.00025,2]
[332418436,1721169087453,-4291.41,0.00025,2]
[332418437,1721169087462,-300.0,0.00025,2]
[332418438,1721169087470,-79568.64255978,0.00025,2]
[332418439,1721169087479,-6409.45465315,0.00025,2]
[332418440,1721169087488,-350.0,0.00025,3]
[332418441,1721169087497,-1000.0,0.00025,25]
[332418442,1721169087506,-45163.32911264,0.00025,2]
[332418443,1721169087516,-155.70377709,0.00025013,2]
[332418444,1721169087527,-153.69380405,0.00025022,2]
[332418445,1721169087537,-154.04110748,0.00025034,2]
[332418446,1721169087546,-1613.0,0.00025055,2]
[332418447,1721169087556,-154.04110748,0.00025068,2]
[332418448,1721169087565,-4635.80069494,0.00025091,2]
[332418449,1721169087575,-1026.50762441,0.00025128,2]
[332418450,1721169087584,-302.45563732,0.00025149,2]
[332418451,1721169087593,-394.37458897,0.00025161,2]
[332418452,1721169087603,-155.70377709,0.00025167,2]
[332418453,1721169087612,-167.36296649,0.00025176,2]
[332418454,1721169087623,-1026.50762441,0.00025199,2]
[332418455,1721169087633,-30000.0,0.00025204,2]
[332418456,1721169087642,-42291.50925035,0.00025204,2]
[332418457,1721169087651,-3732.89,0.00025205,2]
[332418458,1721169087660,-500.0,0.00025205,2]
[332418459,1721169087669,-500.0,0.00025205,2]
[332418460,1721169087678,-500.0,0.00025205,2]
[332418461,1721169087687,-500.0,0.00025205,2]
[332418462,1721169087696,-500.0,0.00025205,2]
[332418463,1721169087705,-500.0,0.00025205,2]
[332418464,1721169087714,-500.0,0.00025205,2]
[332418465,1721169087723,-500.0,0.00025205,2]
[332418466,1721169087732,-500.0,0.00025205,2]
[332418467,1721169087741,-500.0,0.00025205,2]
[332418468,1721169087750,-533.68649253,0.00025205,2]
[332418469,1721169087759,-1500.0,0.00025205,2]
[332418470,1721169087769,-1135.72,0.00025205,2]
[332418471,1721169087778,-500.0,0.00025205,2]
[332418472,1721169087788,-500.0,0.00025205,2]
[332418473,1721169087798,-500.0,0.00025205,2]
[332418474,1721169087807,-200.0,0.00025205,2]
[332418475,1721169087817,-500.0,0.00025205,2]
[332418476,1721169087827,-500.0,0.00025205,2]
[332418477,1721169087835,-2009.05,0.00025205,2]
[332418478,1721169087845,-513.66,0.00025205,2]
[332418479,1721169087854,-890.49,0.00025205,2]
[332418480,1721169087863,-500.0,0.00025205,2]
[332418481,1721169087872,-521.03,0.00025205,2]
[332418482,1721169087881,-538.45,0.00025205,2]
[332418483,1721169087890,-500.0,0.00025205,2]
[332418484,1721169087899,-500.0,0.00025205,2]
[332418485,1721169087908,-472.82594842,0.00025205,2]
[332418486,1721169087917,-526.07,0.00025205,2]
[332418487,1721169087927,-500.0,0.00025205,2]
[332418488,1721169087937,-391.78169348,0.00025205,2]
[332418489,1721169087946,-899.71,0.00025205,2]
[332418490,1721169087955,-255.846659,0.00025205,2]
[332418491,1721169087964,-500.0,0.00025205,2]
[332418492,1721169087973,-500.0,0.00025205,2]
[332418493,1721169087982,-501.59,0.00025205,2]
[332418494,1721169087991,-500.0,0.00025205,2]
[332418495,1721169088014,-998.4,0.00025205,2]
[332418496,1721169088035,-559.03,0.00025205,2]
[332418497,1721169088055,-500.0,0.00025205,2]
[332418498,1721169088077,-500.0,0.00025205,2]
[332418499,1721169088093,-500.0,0.00025205,2]
[332418500,1721169088111,-500.0,0.00025205,2]
[332418501,1721169088125,-578.836978,0.00025205,2]
[332418502,1721169088141,-529.70473571,0.00025205,2]
[332418503,1721169088159,-500.0,0.00025205,2]
[332418504,1721169088179,-500.0,0.00025205,2]
[332418505,1721169088191,-590.393816,0.00025205,2]
[332418506,1721169088207,-500.0,0.00025205,2]
[332418507,1721169088224,-500.0,0.00025205,2]
[332418508,1721169088242,-518.78853896,0.00025205,2]
[332418509,1721169088255,-500.0,0.00025205,2]
[332418510,1721169088270,-279.70913452,0.00025205,2]
[332418511,1721169088285,-500.0,0.00025205,2]
[332418512,1721169088300,-500.0,0.00025205,2]
[332418513,1721169088314,-500.0,0.00025205,2]
[332418514,1721169088328,-500.0,0.00025205,2]
[332418515,1721169088343,-500.0,0.00025205,2]
[332418516,1721169088357,-500.0,0.00025205,2]
[332418517,1721169088372,-500.0,0.00025205,2]
[332418518,1721169088386,-291.36179881,0.00025205,2]
[332418519,1721169088400,-500.0,0.00025205,2]
[332418520,1721169088414,-535.88,0.00025205,2]
[332418521,1721169088428,-536.64,0.00025205,2]
[332418522,1721169088442,-752.44,0.00025205,2]
[332418523,1721169088457,-500.0,0.00025205,2]
[332418524,1721169088470,-500.0,0.00025205,2]
[332418525,1721169088484,-500.0,0.00025205,2]
[332418526,1721169088498,-500.0,0.00025205,2]
[332418527,1721169088512,-500.0,0.00025205,2]
[332418528,1721169088528,-500.0,0.00025205,2]
[332418529,1721169088542,-500.0,0.00025205,2]
[332418530,1721169088557,-500.0,0.00025205,2]
[332418531,1721169088571,-489.25585568,0.00025205,2]
[332418532,1721169088585,-500.0,0.00025205,2]
[332418533,1721169088600,-573.79,0.00025205,2]
[332418534,1721169088614,-500.0,0.00025205,2]
[332418535,1721169088628,-500.0,0.00025205,2]
[332418536,1721169088642,-500.0,0.00025205,2]
[332418537,1721169088657,-622.47699389,0.00025205,2]
[332418538,1721169088671,-500.0,0.00025205,2]
[332418539,1721169088685,-1939.77,0.00025205,2]
[332418540,1721169088699,-500.0,0.00025205,4]
[332418541,1721169088712,-678.32,0.00025205,2]
[332418542,1721169088727,-500.0,0.00025205,2]
[332418543,1721169088741,-500.0,0.00025205,2]
[332418544,1721169088755,-500.0,0.00025205,2]
[332418545,1721169088770,-500.0,0.00025205,2]
[332418546,1721169088784,-840.42,0.00025205,2]
[332418547,1721169088799,-879.13,0.00025205,2]
[332418548,1721169088813,-509.0,0.00025205,2]
[332418549,1721169088829,-945.66,0.00025205,2]
[332418550,1721169088843,-1440.87,0.00025205,2]
[332418551,1721169088857,-500.0,0.00025205,2]
[332418552,1721169088871,-604.37,0.00025205,2]
[332418553,1721169088885,-500.0,0.00025205,2]
[332418554,1721169088899,-1174.77,0.00025205,2]
[332418555,1721169088914,-500.0,0.00025205,2]
[332418556,1721169088928,-500.0,0.00025205,2]
[332418557,1721169088943,-1756.65,0.00025205,2]
[332418558,1721169088958,-500.0,0.00025205,2]
[332418559,1721169088973,-2173.38,0.00025205,2]
[332418560,1721169088988,-631.75,0.00025205,2]
[332418561,1721169089002,-1958.68,0.00025205,2]
[332418562,1721169089121,-878.66,0.00025205,2]
[332418563,1721169089145,-500.0,0.00025205,2]
[332418564,1721169089155,-8168.7,0.00025205,2]
[332418565,1721169089164,-500.0,0.00025205,2]
[332418566,1721169089175,-500.0,0.00025205,2]
[332418567,1721169089184,-1056.72,0.00025205,2]
[332418568,1721169089194,-500.0,0.00025205,2]
[332418569,1721169089203,-479.95778129,0.00025205,2]
[332418570,1721169089212,-500.0,0.00025205,2]
[332418571,1721169089221,-987.64,0.00025205,2]
[332418572,1721169089235,-500.0,0.00025205,2]
[332418573,1721169089244,-529.34,0.00025205,2]
[332418574,1721169089253,-1846.1,0.00025205,2]
[332418575,1721169089263,-500.0,0.00025205,2]
[332418576,1721169089274,-534.11,0.00025205,2]
[332418577,1721169089283,-500.0,0.00025205,2]
[332418578,1721169089292,-500.0,0.00025205,2]
[332418579,1721169089302,-500.0,0.00025205,2]
[332418580,1721169089312,-781.82,0.00025205,2]
[332418581,1721169089321,-1707.95,0.00025205,2]
[332418582,1721169089330,-500.0,0.00025205,2]
[332418583,1721169089339,-500.0,0.00025205,2]
[332418584,1721169089349,-500.0,0.00025205,2]
[332418585,1721169089358,-869.44,0.00025205,2]
[332418586,1721169089367,-500.0,0.00025205,2]
[332418587,1721169089377,-500.0,0.00025205,2]
[332418588,1721169089386,-782.13,0.00025205,2]
[332418589,1721169089395,-500.0,0.00025205,2]
[332418590,1721169089404,-755.38,0.00025205,2]
[332418591,1721169089414,-23532.56,0.00025205,2]
[332418592,1721169089423,-1207.91,0.00025205,2]
[332418593,1721169089432,-500.0,0.00025205,2]
[332418594,1721169089442,-500.0,0.00025205,2]
[332418595,1721169089451,-10406.23,0.00025205,2]
[332418596,1721169089461,-659.05,0.00025205,2]
[332418597,1721169089471,-528.84,0.00025205,2]
[332418598,1721169089481,-500.0,0.00025205,2]
[332418599,1721169089490,-761.91,0.00025205,2]
[332418600,1721169089499,-684.98,0.00025205,2]
[332418601,1721169089507,-386.65129206,0.00025205,2]
[332418602,1721169089517,-500.0,0.00025205,2]
[332418603,1721169089527,-905.03,0.00025205,2]
[332418604,1721169089536,-599.09092804,0.00025205,2]
[332418605,1721169089545,-500.0,0.00025205,2]
[332418606,1721169089554,-500.0,0.00025205,2]
[332418607,1721169089563,-1609.25,0.00025205,2]
[332418608,1721169089574,-500.0,0.00025205,2]
[332418609,1721169089583,-500.0,0.00025205,2]
[332418610,1721169089593,-4635.80069494,0.00025256,2]
[332418611,1721169089603,-154.65203293,0.0002526,2]
[332418612,1721169089612,-1026.50762441,0.0002528,2]
[332418613,1721169089622,-1026.50762441,0.00025288,2]
[332418614,1721169089631,-153.69380405,0.00025329,2]
[332418615,1721169089641,-1026.50762441,0.0002534,2]
[332418616,1721169089651,-1026.50762441,0.00025343,2]
[332418617,1721169089661,-154.04110748,0.00025354,2]
[332418618,1721169089672,-1026.50762441,0.00025357,2]
[332418619,1721169089682,-155.70377709,0.00025358,2]
[332418620,1721169089692,-394.37458897,0.00025361,2]
[332418621,1721169089704,-1788.64877304,0.00025366,2]
[332418622,1721169089714,-4635.80069494,0.0002538,2]
[332418623,1721169089724,-1788.64877304,0.00025382,2]
[332418624,1721169089734,-4635.80069494,0.00025387,2]
[332418625,1721169089743,-302.45563732,0.00025398,2]
[332418626,1721169089753,-394.37458897,0.00025433,2]
[332418627,1721169089762,-394.37458897,0.00025434,2]
[332418628,1721169089773,-153.69380405,0.00025462,2]
[332418629,1721169089783,-3732.89,0.00025479,2]
[332418630,1721169089792,-488.88803959,0.00025479,2]
[332418631,1721169089801,-500.0,0.00025479,2]
[332418632,1721169089811,-442.54146874,0.00025479,2]
[332418633,1721169089822,-509.6415422,0.00025479,2]
[332418634,1721169089831,-500.0,0.00025479,2]
[332418635,1721169089841,-500.0,0.00025479,2]
[332418636,1721169089851,-500.0,0.00025479,2]
[332418637,1721169089860,-500.0,0.00025479,2]
[332418638,1721169089871,-500.0,0.00025479,2]
[332418639,1721169089882,-500.0,0.00025479,2]
[332418640,1721169089891,-1500.0,0.00025479,2]
[332418641,1721169089902,-1135.72,0.00025479,2]
[332418642,1721169089913,-193.13850287,0.00025479,2]
[332418643,1721169089923,-500.0,0.00025479,2]
[332418644,1721169089934,-500.0,0.00025479,2]
[332418645,1721169089945,-200.0,0.00025479,2]
[332418646,1721169089956,-500.0,0.00025479,2]
[332418647,1721169089965,-500.0,0.00025479,2]
[332418648,1721169089973,-2009.05,0.00025479,2]
[332418649,1721169089983,-513.66,0.00025479,2]
[332418650,1721169089994,-890.49,0.00025479,2]
[332418651,1721169090003,-500.0,0.00025479,2]
[332418652,1721169090013,-521.03,0.00025479,2]
[332418653,1721169090024,-538.45,0.00025479,2]
[332418654,1721169090036,-500.0,0.00025479,2]
[332418655,1721169090046,-500.0,0.00025479,2]
[332418656,1721169090056,-526.07,0.00025479,2]
[332418657,1721169090067,-500.0,0.00025479,2]
[332418658,1721169090077,-899.71,0.00025479,2]
[332418659,1721169090087,-500.0,0.00025479,2]
[332418660,1721169090097,-531.12197581,0.00025479,2]
[332418661,1721169090109,-501.59,0.00025479,2]
[332418662,1721169090119,-500.0,0.00025479,2]
[332418663,1721169090128,-998.4,0.00025479,2]
[332418664,1721169090138,-559.03,0.00025479,2]
[332418665,1721169090149,-500.0,0.00025479,2]
[332418666,1721169090159,-500.0,0.00025479,2]
[332418667,1721169090169,-500.0,0.00025479,2]
[332418668,1721169090179,-575.36970071,0.00025479,2]
[332418669,1721169090189,-500.0,0.00025479,2]
[332418670,1721169090200,-500.0,0.00025479,2]
[332418671,1721169090210,-500.0,0.00025479,2]
[332418672,1721169090221,-500.0,0.00025479,2]
[332418673,1721169090235,-500.0,0.00025479,2]
[332418674,1721169090246,-500.0,0.00025479,2]
[332418675,1721169090257,-500.0,0.00025479,2]
[332418676,1721169090267,-500.0,0.00025479,2]
[332418677,1721169090280,-500.0,0.00025479,2]
[332418678,1721169090291,-500.0,0.00025479,2]
[332418679,1721169090306,-500.0,0.00025479,2]
[332418680,1721169090316,-430.47100395,0.00025479,2]
[332418681,1721169090326,-347.01898202,0.00025479,2]
[332418682,1721169090335,-535.88,0.00025479,2]
[332418683,1721169090344,-536.64,0.00025479,2]
[332418684,1721169090353,-752.44,0.00025479,2]
[332418685,1721169090362,-500.0,0.00025479,2]
[332418686,1721169090374,-500.0,0.00025479,2]
[332418687,1721169090385,-500.0,0.00025479,2]
[332418688,1721169090396,-500.0,0.00025479,2]
[332418689,1721169090408,-500.0,0.00025479,2]
[332418690,1721169090417,-500.0,0.00025479,2]
[332418691,1721169090428,-500.0,0.00025479,2]
[332418692,1721169090439,-500.0,0.00025479,2]
[332418693,1721169090449,-500.0,0.00025479,2]
[332418694,1721169090460,-573.79,0.00025479,2]
[332418695,1721169090471,-500.0,0.00025479,2]
[332418696,1721169090481,-500.0,0.00025479,2]
[332418697,1721169090492,-542.43389889,0.00025479,2]
[332418698,1721169090503,-1939.77,0.00025479,2]
[332418699,1721169090512,-500.0,0.00025479,4]
[332418700,1721169090523,-678.32,0.00025479,2]
[332418701,1721169090532,-500.0,0.00025479,2]
[332418702,1721169090542,-500.0,0.00025479,2]
[332418703,1721169090552,-500.0,0.00025479,2]
[332418704,1721169090561,-500.0,0.00025479,2]
[332418705,1721169090571,-840.42,0.00025479,2]
[332418706,1721169090580,-879.13,0.00025479,2]
[332418707,1721169090589,-509.0,0.00025479,2]
[332418708,1721169090599,-945.66,0.00025479,2]
[332418709,1721169090608,-1440.87,0.00025479,2]
[332418710,1721169090617,-500.0,0.00025479,2]
[332418711,1721169090626,-604.37,0.00025479,2]
[332418712,1721169090718,-500.0,0.00025479,2]
[332418713,1721169090728,-1174.77,0.00025479,2]
[332418714,1721169090737,-500.0,0.00025479,2]
[332418715,1721169090746,-500.0,0.00025479,2]
[332418716,1721169090755,-1756.65,0.00025479,2]
[332418717,1721169090764,-500.0,0.00025479,2]
[332418718,1721169090776,-2173.38,0.00025479,2]
[332418719,1721169090785,-631.75,0.00025479,2]
[332418720,1721169090794,-1958.68,0.00025479,2]
[332418721,1721169090803,-878.66,0.00025479,2]
[332418722,1721169090811,-500.0,0.00025479,2]
[332418723,1721169090821,-8168.7,0.00025479,2]
[332418724,1721169090830,-500.0,0.00025479,2]
[332418725,1721169090840,-500.0,0.00025479,2]
[332418726,1721169090849,-1056.72,0.00025479,2]
[332418727,1721169090858,-500.0,0.00025479,2]
[332418728,1721169090867,-500.0,0.00025479,2]
[332418729,1721169090876,-987.64,0.00025479,2]
[332418730,1721169090886,-500.0,0.00025479,2]
[332418731,1721169090895,-529.34,0.00025479,2]
[332418732,1721169090904,-1221.07713855,0.00025479,2]
[332418733,1721169091119,-500.0,0.00024931,2]
[332418734,1721169091129,-625.02286145,0.00025479,2]
[332418735,1721169091138,-500.0,0.00025479,2]
[332418736,1721169091147,-534.11,0.00025479,2]
[332418737,1721169091156,-500.0,0.00025479,2]
[332418738,1721169091166,-500.0,0.00025479,2]
[332418739,1721169091175,-500.0,0.00025479,2]
[332418740,1721169091184,-781.82,0.00025479,2]
[332418741,1721169091193,-1707.95,0.00025479,2]
[332418742,1721169091202,-573.50142787,0.00025479,2]
[332418743,1721169091211,-500.0,0.00025479,2]
[332418744,1721169091220,-500.0,0.00025479,2]
[332418745,1721169091233,-869.44,0.00025479,2]
[332418746,1721169091242,-500.0,0.00025479,2]
[332418747,1721169091251,-500.0,0.00025479,2]
[332418748,1721169091260,-782.13,0.00025479,2]
[332418749,1721169091270,-500.0,0.00025479,2]
[332418750,1721169091283,-755.38,0.00025479,2]
[332418751,1721169091293,-10334.22554666,0.00025479,2]
[332418752,1721169091541,-151.0,0.00018,2]
[332418753,1721169091550,-151.0,0.00019165,2]
[332418754,1721169091559,-151.0,0.0002,2]
[332418755,1721169091568,-151.0,0.00021123,2]
[332418756,1721169091577,-151.0,0.0002185,2]
[332418757,1721169091586,-500.0,0.00021917,2]
[332418758,1721169091595,-500.0,0.00022191,2]
[332418759,1721169091605,-500.0,0.00022465,2]
[332418760,1721169091615,-500.0,0.00022465,2]
[332418761,1721169091624,-500.0,0.00022739,2]
[332418762,1721169091633,-500.0,0.00022739,2]
[332418763,1721169091643,-500.0,0.00023013,2]
[332418764,1721169091652,-500.0,0.00023013,2]
[332418765,1721169091661,-74.47,0.00023287,2]
[332418766,1721169092288,-276.83055069,0.000162,2]
[332418767,1721169092298,-151.0,0.00018,2]
[332418768,1721169092308,-98.25017806,0.00019165,2]
[332418769,1721169092320,-52.74982194,0.00019165,2]
[332418770,1721169092330,-151.0,0.0002,2]
[332418771,1721169092339,-151.0,0.00021123,2]
[332418772,1721169092349,-151.0,0.0002185,2]
[332418773,1721169092358,-151.0,0.00021917,2]
[332418774,1721169092368,-500.0,0.00021917,2]
[332418775,1721169092378,-500.0,0.00021917,2]
[332418776,1721169092388,-151.0,0.00021917,2]
[332418777,1721169092397,-500.0,0.00021917,2]
[332418778,1721169092406,-500.0,0.00021917,2]
[332418779,1721169092415,-721.59,0.00021917,2]
[332418780,1721169092424,-500.0,0.00021917,2]
[332418781,1721169092433,-151.0,0.00021917,2]
[332418782,1721169092443,-151.0,0.00021917,2]
[332418783,1721169092451,-500.0,0.00021917,2]
[332418784,1721169092461,-500.0,0.00021917,2]
[332418785,1721169092470,-151.0,0.0002194,7]
[332418786,1721169092479,-151.0,0.0002194,7]
[332418787,1721169092488,-500.0,0.00022191,2]
[332418788,1721169092497,-151.0,0.00022191,7]
[332418789,1721169092506,-151.0,0.00022191,7]
[332418790,1721169092515,-721.59,0.00022191,2]
[332418791,1721169092528,-500.0,0.00022191,2]
[332418792,1721169092538,-248.652512,0.00022191,7]
[332418793,1721169092547,-500.0,0.00022191,2]
[332418794,1721169092557,-305.02786816,0.00022465,2]
[332418795,1721169092566,-721.59,0.00022465,2]
[332418796,1721169092575,-721.59,0.00022739,2]
[332418797,1721169092584,-721.59,0.00023013,2]
[332418798,1721169092594,-425.53,0.00023287,2]
[332418799,1721169092603,-500.0,0.00023287,2]
[332418800,1721169092612,-721.59,0.00023287,2]
[332418801,1721169092622,-500.0,0.00023561,2]
[332418802,1721169092631,-394.1978042,0.00023561,2]
[332418803,1721169092641,-721.59,0.00023561,2]
[332418804,1721169092650,-500.0,0.00023835,2]
[332418805,1721169092659,-721.59,0.00023835,2]
[332418806,1721169092669,-500.0,0.00024109,2]
[332418807,1721169092678,-721.59,0.00024109,2]
[332418808,1721169092687,-4428.96098519,0.00024117,2]
[332418809,1721169092696,-500.0,0.00024383,2]
[332418810,1721169092705,-721.59,0.00024383,2]
[332418811,1721169092714,-500.0,0.00024657,2]
[332418812,1721169092723,-297.35298191,0.00024931,2]
[332418813,1721169092732,-500.0,0.00025205,2]
[332418814,1721169092743,-13198.33445334,0.00025479,2]
[332418815,1721169092755,-1207.91,0.00025479,2]
[332418816,1721169092765,-500.0,0.00025479,2]
[332418817,1721169092776,-227.98310187,0.00025479,2]
[332418818,1721169092785,-10406.23,0.00025479,2]
[332418819,1721169092795,-659.05,0.00025479,2]
[332418820,1721169092805,-528.84,0.00025479,2]
[332418821,1721169092814,-761.91,0.00025479,2]
[332418822,1721169092824,-500.0,0.00025479,2]
[332418823,1721169092834,-684.98,0.00025479,2]
[332418824,1721169092844,-500.0,0.00025479,2]
[332418825,1721169092855,-253.94670928,0.00025479,2]
[332418826,1721169092868,-651.08329072,0.00025479,2]
[332418827,1721169092877,-500.0,0.00025479,2]
[332418828,1721169092886,-500.0,0.00025479,2]
[332418829,1721169092894,-1609.25,0.00025479,2]
[332418830,1721169092904,-500.0,0.00025479,2]
[332418831,1721169092914,-500.0,0.00025479,2]
[332418832,1721169092923,-516.26070531,0.00025479,2]
[332418833,1721169092932,-620.00029781,0.00025483,2]
[332418834,1721169092942,-4621.96934293,0.000255,2]
[332418835,1721169092953,-572.27563167,0.000255,2]
[332418836,1721169094388,191.242275,0.00015928,2]
[332418837,1721169094428,242253.33105705,0.0001594,2]
[332418841,1721169174941,233.10250761,0.0001594,2]
[332418846,1721169245219,610.71,0.00010959,2]
[332418847,1721169253397,3000.0,0.00015869,2]
[332418856,1721169331068,156.30618372,0.00014999,2]
[332418863,1721169445072,2507.76418287,0.00014999,2]
[332418879,1721169627944,10583.55970307,0.00014998,2]
[332418884,1721169716259,3490.48560076,0.00014999,2]
[332418888,1721169806266,156.28958,0.00014999,2]
[332418889,1721169806935,24900.0,0.00015225,2]
[332418890,1721169818491,210.43288736,0.00014999,2]
[332418891,1721169832809,228.54378529,0.00015,2]
[332418892,1721169832952,162.11072453,0.00014999,2]
[332418893,1721169836395,2129.50465136,0.00014999,2]
[332418896,1721169933285,3000.0,0.00015224,2]
[332418898,1721169975321,391.80627157,0.00014999,2]
[332418900,1721169995256,473.61680392,0.00014999,2]
[332418906,1721170095640,180.0289481,0.00014999,2]
[332418908,1721170126969,-191.242275,0.00016142,2]
[332418909,1721170126999,-300.0,0.00016152,2]
[332418910,1721170127028,-56.01715755,0.00016152,2]
[332418911,1721170127062,-243.98284245,0.00016152,2]
[332418912,1721170127090,-196.97657521,0.00016153,2]
[332418949,1721170233941,-2214.48049263,0.00016134,2]
[332418951,1721170233953,-654.04417421,0.00016153,2]
[332418960,1721170234024,-1695.6437863,0.00016153,2]
[332418962,1721170234035,-300.0,0.00016153,2]
[332418964,1721170234045,-300.0,0.00016153,2]
[332418966,1721170234055,-2546.66453571,0.00016154,2]
[332418968,1721170234068,-2546.66453571,0.00016154,2]
[332418970,1721170234081,-358.54491725,0.00016155,2]
[332419174,1721170238518,-1178.79318715,0.00016155,2]
[332419177,1721170238532,-1009.32643131,0.00016155,2]
[332419179,1721170238545,-206.35896234,0.00016155,2]
[332419182,1721170238558,-2546.66453571,0.00016155,2]
[332419184,1721170238569,-500.0,0.00016234,2]
[332419186,1721170238580,-214.74119714,0.00016234,2]
[332419187,1721170238590,-500.0,0.00016234,2]
[332419188,1721170238601,-553.25420285,0.00016234,2]
[332419190,1721170238611,-500.0,0.00016234,2]
[332419192,1721170238623,-500.0,0.00016234,2]
[332419194,1721170238636,-500.0,0.00016234,2]
[332419196,1721170238648,-500.0,0.00016234,2]
[332419198,1721170238659,-500.0,0.00016234,2]
[332419200,1721170238670,-334.32804641,0.00016234,2]
[332419203,1721170238681,-500.0,0.00016234,2]
[332419205,1721170238695,-500.0,0.00016234,2]
[332419207,1721170238708,-500.0,0.00016234,2]
[332419209,1721170238718,-353.45368543,0.00016234,2]
[332419212,1721170238730,-500.0,0.00016234,2]
[332419214,1721170238741,-500.0,0.00016234,2]
[332419216,1721170238754,-500.0,0.00016234,2]
[332419217,1721170238765,-500.0,0.00016234,2]
[332419218,1721170238775,-448.88675788,0.00016234,2]
[332419219,1721170238787,-500.0,0.00016234,2]
[332419220,1721170238798,-500.0,0.00016234,2]